Cogmind - Beta 11.1 @@@ ROGUE MODE // 2022.06.24 @ 14:52:50 Player: btmk16 Result: Self-destructed Performance ------------- Evolutions (3) 1500 Regions Visited (7) 1400 Robots Destroyed (58) 290 Value Destroyed (1575) 1575 Prototype IDs (4) 80 Alien Tech Used (0) 0 Bonus (-331) -331 TOTAL SCORE: 4514 Bonus ------- Follower Combat Kills 75 Friendly Fire -406 Cogmind --------- Core Integrity 304/700 Matter 300/300 Energy 340/340 System Corruption 18% Temperature Cool (10) Movement Rolling (150) Ox4 Location -7/Waste Parts ------- > --- POWER (2) -------- Improved Deuterium Engine Micro Nuclear Core > --- PROPULSION (2) --- Wheel Compact Wheel > --- UTILITY (7) ------ Improved Heat Sink Improved Heat Sink Huge Storage Unit Improved Sensor Array Target Analyzer Improved Medium Armor Plating Tractor Beam > --- WEAPON (2) ------- Improved Assault Rifle Minigun > --- INVENTORY (25) --- Nuclear Core Light Nuclear Core Improved Deuterium Engine Micro Nuclear Core Light Treads Light Treads Light Treads Advanced Treads Wheel Compact Wheel Improved Heat Sink High-capacity Storage Unit Huge Storage Unit Structural Scanner Advanced Visual Processing Unit Improved Medium Armor Plating Improved Medium Armor Plating Improved Medium Armor Plating Particle Gun Grenade Launcher Grenade Launcher Grenade Launcher Grenade Launcher Grenade Launcher Heavy Flail Peak State ------------ > --- POWER ------------ Improved Deuterium Engine Micro Nuclear Core > --- PROPULSION ------- Wheel Compact Wheel > --- UTILITY ---------- Improved Heat Sink Improved Heat Sink Huge Storage Unit Improved Sensor Array Target Analyzer Improved Medium Armor Plating Tractor Beam > --- WEAPON ----------- Improved Assault Rifle Minigun > --- INVENTORY -------- Nuclear Core Light Nuclear Core Improved Deuterium Engine Micro Nuclear Core Light Treads Light Treads Light Treads Advanced Treads Wheel Compact Wheel Improved Heat Sink High-capacity Storage Unit Huge Storage Unit Structural Scanner Advanced Visual Processing Unit Improved Medium Armor Plating Improved Medium Armor Plating Improved Medium Armor Plating Particle Gun Grenade Launcher Grenade Launcher Grenade Launcher Grenade Launcher Grenade Launcher Heavy Flail [Rating: 39] Favorites ----------- Power Ion Engine Engine Ion Engine Power Core Nuclear Core Propulsion Aluminum Leg Treads Light Treads Leg Aluminum Leg Wheel Wheel Utility Signal Interpreter Device Improved Heat Sink Storage Huge Storage Unit Processor Signal Interpreter Protection Light Armor Plating Weapon Assault Rifle Ballistic Gun Assault Rifle Impact Weapon Heavy Flail Build | -11 -10 -10 -10 -9 -8 -7 -7 ------- Run | Scr Mat Min Exi Min Mat Fac Was Slots Evolved 6 | . . . . . 4 2 . Power 1 | . . . . . . 1 . Propulsion . | . . . . . . . . Utility 5 | . . . . . 4 1 . Weapon . | . . . . . . . . Parts Attached 66 | . 5 . 2 1 20 38 . Power 10 | . 1 . . . . 9 . Engine 6 | . 1 . . . . 5 . Core 4 | . . . . . . 4 . Reactor . | . . . . . . . . Propulsion 14 | . . . 2 . 8 4 . Treads 7 | . . . 2 . 3 2 . Leg . | . . . . . . . . Wheel 7 | . . . . . 5 2 . Hover . | . . . . . . . . Flight . | . . . . . . . . Utility 26 | . 4 . . 1 9 12 . Device 11 | . . . . . 5 6 . Storage 6 | . 2 . . 1 1 2 . Processor 2 | . 1 . . . . 1 . Hackware . | . . . . . . . . Protection 7 | . 1 . . . 3 3 . Artifact . | . . . . . . . . Weapon 16 | . . . . . 3 13 . Energy Gun . | . . . . . . . . Energy Cannon . | . . . . . . . . Ballistic Gun 13 | . . . . . 3 10 . Ballistic Cannon . | . . . . . . . . Launcher . | . . . . . . . . Special Weapon . | . . . . . . . . Impact Weapon 3 | . . . . . . 3 . Slashing Weapon . | . . . . . . . . Piercing Weapon . | . . . . . . . . Special Melee Weapon . | . . . . . . . . Unidentified Prototypes 2 | . . . . . . 2 . Parts Lost 19 | . . . . . 3 16 . Power 3 | . . . . . . 3 . Propulsion 4 | . . . . . 1 3 . Utility 7 | . . . . . 1 6 . Weapon 5 | . . . . . 1 4 . Highest Loss Streak 4 | . . . . . 2 4 . To Critical Strikes . | . . . . . . . . Average Slot Usage (%) 97 | . 98 100 100 100 94 96 100 Engine 10 | . 14 14 14 14 9 8 7 Core 1 | . . . . . . 5 7 Treads 4 | . . . 1 28 7 3 . Leg 10 | . 28 28 26 . . . . Wheel 6 | . . . . . 10 10 15 Device 12 | . . . . . 20 22 30 Storage 12 | . 14 14 14 14 9 11 7 Processor 7 | . 4 14 14 14 9 6 7 Protection 7 | . 8 . . . 10 9 7 Ballistic Gun 20 | . 28 28 28 28 18 13 15 Naked Turns . | . . . . . . . . Heaviest Build 114 | 12 30 29 29 49 96 114 113 Greatest Support 40 | 20 20 20 40 40 40 26 26 Greatest Overweight (x) 11 | . 1 1 1 1 9 11 4 Average Overweight (x) 2 | . . 1 . . 3 7 4 Largest Inventory Capacity 25 | . 15 15 15 20 25 25 25 Average Capacity 19 | . 10 15 15 18 24 25 25 Most Carried 25 | . 15 15 15 15 25 25 25 Average Carried 18 | . 9 15 15 15 21 24 25 Final Capacity 25 | 8 15 15 15 20 25 25 25 Final Carried 25 | 6 15 15 15 15 23 25 25 Class Distribution -------------------- 34% | Mutant 26% | Scavenger-Mutant 22% | Scavenger-Skirmisher 16% | Commander-Mutant Dominant Class ---------------- Mutant | -10/Materials Mutant | -10/Mines Commander-Mutant | -10/Exiles Commander-Mutant | -9/Mines Scavenger-Skirmisher | -8/Materials Scavenger-Mutant | -7/Factory Scavenger-Mutant | -7/Waste Resources | -11 -10 -10 -10 -9 -8 -7 -7 ----------- Run | Scr Mat Min Exi Min Mat Fac Was Matter Collected 2064 | 200 226 . . 36 518 1084 . Remotely 688 | . . . . . . 688 . Salvage Created 2513 | . 480 . . . 847 1186 . Parts 131 | . 30 . . . 50 51 . Haulers Intercepted 5 | . 2 . . . 2 1 . Recyclers Shooed 3 | . 1 . . . 2 . . Parts Field Recycled . | . . . . . . . . Retrieved Matter . | . . . . . . . . Parts Self-Destructed . | . . . . . . . . Prevented . | . . . . . . . . Kills | -11 -10 -10 -10 -9 -8 -7 -7 ------- Run | Scr Mat Min Exi Min Mat Fac Was Combat Hostiles Destroyed 42 | . 10 . . . 14 18 . Guns 41 | . 10 . . . 13 18 . AOE 1 | . . . . . 1 . . Classes Destroyed 10 | . 4 . . . 3 3 . Worker 2 | . 1 . . . . 1 . Builder 1 | . . . . . 1 . . Hauler 5 | . 2 . . . 2 1 . Recycler 5 | . . . . . 1 4 . Swarmer 16 | . 3 . . . 5 8 . Grunt 17 | . 7 . . . 9 1 . Brawler 2 | . . . . . . 2 . Duelist 2 | . . . . . . 2 . Sentry 5 | . . . . . 3 2 . Programmer 3 | . . . . . . 3 . Best Kill Streak 8 | . 8 . . . 5 4 . Combat Bots Only 7 | . 7 . . . 4 4 . Max Kills in Single Turn 2 | . 2 . . . 2 2 . Gunslinging 1 | . . . . . 1 1 . Exploded 1 | . . . . . 1 . . Melee . | . . . . . . . . Uniques/NPCs Destroyed . | . . . . . . . . Combat | -11 -10 -10 -10 -9 -8 -7 -7 -------- Run | Scr Mat Min Exi Min Mat Fac Was Damage Taken 2714 | . 216 . . 38 489 1971 . Core 516 | . 38 . . . 82 396 . Absorbed by Shields . | . . . . . . . . Redirected to Shielding 52 | . 17 . . . 35 . . Core Remaining (%) 89 | 100 . . . 84 85 . . Volleys Fired 186 | . 31 . . 1 51 103 . Largest 2 | . 2 . . 2 2 2 . Hottest 50 | . 40 . . 40 45 50 . Shots Fired 351 | . 62 . . 2 101 186 . Gun 351 | . 62 . . 2 101 186 . Cannon . | . . . . . . . . Launcher . | . . . . . . . . Special . | . . . . . . . . Kinetic 351 | . 62 . . 2 101 186 . Thermal . | . . . . . . . . Explosive . | . . . . . . . . Electromagnetic . | . . . . . . . . Robot Hit Streak 14 | . 14 . . . 14 14 . Robot Miss Streak 7 | . 3 . . 4 7 4 . Penetration Max . | . . . . . . . . Secondary Targets 4 | . 1 . . . 1 2 . Max Gunslinging Chain 1 | . 1 . . . 1 1 . Shots Hit Robots 236 | . 41 . . . 64 131 . Core Hits 100 | . 20 . . . 34 46 . Critical Kills 4 | . 1 . . . . 3 . Critical Parts Destroyed 2 | . . . . . 1 1 . Critical Strikes 6 | . 1 . . . 1 4 . Destroy 6 | . 1 . . . 1 4 . Melee Attacks 9 | . . . . . . 9 . Impact 9 | . . . . . . 9 . Slashing . | . . . . . . . . Piercing . | . . . . . . . . Sneak Attacks . | . . . . . . . . Combat Hostiles . | . . . . . . . . Follow-up Attacks . | . . . . . . . . Damage Inflicted 3932 | . 560 . . . 1114 2258 . Guns 3804 | . 552 . . . 994 2258 . Cannons . | . . . . . . . . Explosions 120 | . . . . . 120 . . Melee . | . . . . . . . . Ramming 8 | . 8 . . . . . . Kinetic 3804 | . 552 . . . 994 2258 . Thermal . | . . . . . . . . Explosive 120 | . . . . . 120 . . Electromagnetic . | . . . . . . . . Impact . | . . . . . . . . Slashing . | . . . . . . . . Piercing . | . . . . . . . . Highest Corruption 18 | . . . . . . 18 18 Average Corruption 10 | . . . . . . 10 18 Corruption Purged . | . . . . . . . . Corruption Blocked . | . . . . . . . . Effects 48 | . . . . . . 46 2 Message Errors 14 | . . . . . . 14 . Matter Fused 12 | . . . . . . 12 . Heat Flow Errors 4 | . . . . . . 3 1 Energy Discharges 7 | . . . . . . 6 1 Parts Rejected 1 | . . . . . . 1 . Data Loss (minor) 3 | . . . . . . 3 . Misfires 1 | . . . . . . 1 . Weapon Failures 6 | . . . . . . 6 . Overload Shots . | . . . . . . . . Overflow Damage 9 | . . . . . 9 . . Projectiles . | . . . . . . . . Explosions 9 | . . . . . 9 . . Melee . | . . . . . . . . Knockbacks . | . . . . . . . . Impact . | . . . . . . . . Kinetic . | . . . . . . . . Secondary . | . . . . . . . . Self-Inflicted Damage 48 | . . . . . 48 . . Shots 1 | . . . . . 1 . . Rammed . | . . . . . . . . Targets Rammed 3 | . 3 . . . . . . Kicked 3 | . 3 . . . . . . Crushed . | . . . . . . . . Highest Temperature 161 | . 20 . . . 16 161 56 Average Temperature 51 | . 9 . . . 10 73 33 Received Heat Transfer 384 | . 120 . . . 162 102 . Siege Activations . | . . . . . . . . Robots Corrupted . | . . . . . . . . Combat Hostiles . | . . . . . . . . Parts Fried . | . . . . . . . . Impact Corruptions . | . . . . . . . . Robots Melted . | . . . . . . . . Combat Hostiles . | . . . . . . . . Parts Melted . | . . . . . . . . Heat Transferred . | . . . . . . . . Parts Sabotaged . | . . . . . . . . Parts Stolen . | . . . . . . . . Parts Stripped . | . . . . . . . . Power Chain Reactions . | . . . . . . . . Missiles Intercepted . | . . . . . . . . Alert | -11 -10 -10 -10 -9 -8 -7 -7 ------- Run | Scr Mat Min Exi Min Mat Fac Was Peak Influence 323 | . 302 49 . 86 323 221 70 Initial 127 | . . 49 . . 33 127 70 Average 112 | . 115 49 . 32 183 84 70 Maximum Alert Level 1 | . 1 . . . 1 1 . Low Security (%) 81 | . 88 100 . 100 39 98 100 Level 1 18 | . 11 . . . 60 1 . Level 2 . | . . . . . . . . Level 3 . | . . . . . . . . Level 4 . | . . . . . . . . Level 5 . | . . . . . . . . High Security . | . . . . . . . . Max Security . | . . . . . . . . Squads Dispatched 12 | . 2 . . . 1 9 . Investigation 1 | . 1 . . . . . . Extermination 2 | . . . . . . 2 . Reinforcement 3 | . 1 . . . 1 1 . Assault . | . . . . . . . . Garrison 6 | . . . . . . 6 . Intercept . | . . . . . . . . Searches Triggered . | . . . . . . . . Construction Impeded . | . . . . . . . . Haulers Reinforced 1 | . . . . . . 1 . Active Scanning Responses . | . . . . . . . . Cargo Convoy Interrupts . | . . . . . . . . Stealth | -11 -10 -10 -10 -9 -8 -7 -7 --------- Run | Scr Mat Min Exi Min Mat Fac Was Distress Signals 10 | . 5 . . . 1 4 . Communications Jammed . | . . . . . . . . Distress Signals . | . . . . . . . . Times Spotted 81 | . 25 . . 3 23 26 4 Peak Tracking Total 5 | . 5 . . 3 5 4 4 Tactical Retreats 4 | . . . . . 1 3 . Traps | -11 -10 -10 -10 -9 -8 -7 -7 ------- Run | Scr Mat Min Exi Min Mat Fac Was Traps Triggered 1 | . . . . . . 1 . Indirectly . | . . . . . . . . Trap Hack Attempts . | . . . . . . . . Triggered . | . . . . . . . . Disarmed . | . . . . . . . . Reprogrammed . | . . . . . . . . Reused . | . . . . . . . . Traps Extracted . | . . . . . . . . Installed . | . . . . . . . . Triggered . | . . . . . . . . Machines | -11 -10 -10 -10 -9 -8 -7 -7 ---------- Run | Scr Mat Min Exi Min Mat Fac Was Machines Disabled 2 | . . . . . 2 . . Max in Single Turn 2 | . . . . . 2 . . Garrison Access 2 | . . . . . 1 1 . Machines Sabotaged . | . . . . . . . . Garrisons Compromised . | . . . . . . . . Overloaded Fab Kills . | . . . . . . . . Hacking | -11 -10 -10 -10 -9 -8 -7 -7 --------- Run | Scr Mat Min Exi Min Mat Fac Was Machines Accessed 16 | . 7 . 1 . 2 6 . Terminals 11 | . 7 . . . 1 3 . Fabricators 2 | . . . . . . 2 . Repair Stations . | . . . . . . . . Recycling Units . | . . . . . . . . Scanalyzers . | . . . . . . . . Garrison Access 2 | . . . . . 1 1 . Total Hacks 34 | . 19 . 1 . 5 9 . Successful 19 | . 11 . 1 . 2 5 . Failed 15 | . 8 . . . 3 4 . Catastrophic 4 | . 1 . . . . 3 . Database Lockouts . | . . . . . . . . Manual 15 | . 11 . . . . 4 . Terminals 26 | . 19 . . . 2 5 . Fabricators 3 | . . . . . . 3 . Repair Stations . | . . . . . . . . Recycling Units . | . . . . . . . . Scanalyzers . | . . . . . . . . Garrison Access 4 | . . . . . 3 1 . Terminal Hacks 12 | . 8 . 1 . 1 2 . Record 2 | . 1 . 1 . . . . Robot Analysis 1 | . 1 . . . . . . Prototype ID Bank 1 | . 1 . . . . . . Branch Access Points 1 | . . . . . . 1 . Terminal Index 1 | . 1 . . . . . . Alert Level 2 | . . . . . 1 1 . Locate Traps 3 | . 3 . . . . . . Zone Layout 1 | . 1 . . . . . . Fabricator Hacks 1 | . . . . . . 1 . Network Status 1 | . . . . . . 1 . Repair Station Hacks . | . . . . . . . . Recycling Unit Hacks . | . . . . . . . . Scanalyzer . | . . . . . . . . Garrison Access Hacks 2 | . . . . . 1 1 . Seal Access 2 | . . . . . 1 1 . Unauthorized Hacks 4 | . 3 . . . . 1 . Terminals 3 | . 3 . . . . . . Track 1 | . 1 . . . . . . Assimilate 1 | . 1 . . . . . . Botnet 1 | . 1 . . . . . . Fabricators 1 | . . . . . . 1 . Liberate 1 | . . . . . . 1 . Repair Stations . | . . . . . . . . Recycling Units . | . . . . . . . . Scanalyzers . | . . . . . . . . Garrison Access . | . . . . . . . . Data Cores Recovered . | . . . . . . . . Used . | . . . . . . . . Hacking Detections 11 | . 6 . . . 1 4 . Full Trace Events 1 | . 1 . . . . . . Feedback Events . | . . . . . . . . Feedback Blocked . | . . . . . . . . Robot Schematics Acquired . | . . . . . . . . Robots Built . | . . . . . . . . Authchips . | . . . . . . . . Time . | . . . . . . . . Total Robot Build Rating . | . . . . . . . . Part Schematics Acquired . | . . . . . . . . Parts Built . | . . . . . . . . Authchips . | . . . . . . . . Time . | . . . . . . . . Total Part Build Rating . | . . . . . . . . Parts Repaired . | . . . . . . . . Time . | . . . . . . . . Parts Recycled . | . . . . . . . . Recycled Matter . | . . . . . . . . Retrieved Matter . | . . . . . . . . Retrieved Components . | . . . . . . . . Parts Scanalyzed . | . . . . . . . . Part Schematics Acquired . | . . . . . . . . Parts Damaged . | . . . . . . . . Bothacking | -11 -10 -10 -10 -9 -8 -7 -7 ------------ Run | Scr Mat Min Exi Min Mat Fac Was Used RIF Installer . | . . . . . . . . Robots Hacked . | . . . . . . . . Non-combat . | . . . . . . . . Combat . | . . . . . . . . Robot Hacks Applied . | . . . . . . . . Relay Couplers Released . | . . . . . . . . Fabnet Peak Effective % . | . . . . . . . . Robots Rewired . | . . . . . . . . Allies Hacked . | . . . . . . . . Hacks Repelled . | . . . . . . . . Allies | -11 -10 -10 -10 -9 -8 -7 -7 -------- Run | Scr Mat Min Exi Min Mat Fac Was Total Allies 9 | . 1 3 . . . 5 . Largest Group 4 | . 1 4 4 4 4 3 . Highest-Rated Group 90 | . 10 50 50 50 50 90 . Highest-Rated Ally 32 | . 10 16 16 16 16 32 . Total Orders . | . . . . . . . . Ally Attacks 33 | . . . . 9 15 9 . Total Damage 400 | . . . . 66 137 197 . Kills 10 | . . . . 4 4 2 . Allies Corrupted . | . . . . . . . . Allies Melted . | . . . . . . . . Intel | -11 -10 -10 -10 -9 -8 -7 -7 ------- Run | Scr Mat Min Exi Min Mat Fac Was Robot Analysis Total 1 | . 1 . . . . . . Derelict Logs Recovered . | . . . . . . . . Drone Launches . | . . . . . . . . Drone Recoveries . | . . . . . . . . Exploration | -11 -10 -10 -10 -9 -8 -7 -7 ------------- Run | Scr Mat Min Exi Min Mat Fac Was Turns Passed 4367 | . 1139 243 247 220 1018 1461 39 Spaces Moved 2098 | 1 712 125 130 104 417 583 26 Core . | . . . . . . . . Treads 208 | . . . 5 104 99 . . Legs 963 | 1 712 125 125 . . . . Wheels 927 | . . . . . 318 583 26 Hover . | . . . . . . . . Flight . | . . . . . . . . Fastest Speed 120 | 120 120 190 160 160 135 140 150 Average Speed 171 | 120 138 190 188 200 187 187 150 Slowest Speed 320 | 120 190 190 190 240 320 245 150 Overloaded Moves . | . . . . . . . . Propulsion Burnouts . | . . . . . . . . Robots Hopped . | . . . . . . . . Cave-ins Triggered . | . . . . . . . . Exploration Rate (%) 36 | 2 95 26 48 37 37 16 29 Regions Visited 7 Branch Regions 3 Pre-discovered Areas 2 | . . . 1 1 . . . Known Exits Taken 5 | . 1 1 1 1 1 . . Unknown Exits Taken 1 | 1 . . . . . . . Scrap Searched 2 | . . . . 2 . . . Spaces Dug 6 | . . . . . . 6 . Terrain Destroyed 35 | . . . . . 29 6 . Melee 6 | . . . . . . 6 . Projectile . | . . . . . . . . AOE 29 | . . . . . 29 . . Terrain Rammed . | . . . . . . . . Walls Destroyed . | . . . . . . . . Machines Disabled . | . . . . . . . . Actions | -11 -10 -10 -10 -9 -8 -7 -7 --------- Run | Scr Mat Min Exi Min Mat Fac Was Total 2549 | . 805 131 131 115 563 778 26 Wait 115 | . 35 7 . 9 49 15 . Move 2092 | . 711 124 129 103 416 583 26 Hop . | . . . . . . . . Pick Up 40 | . 13 . . . 12 15 . Fast Attach 20 | . 1 . . . 6 13 . Attach 16 | . . . . . 4 12 . Detach 6 | . . . . . 3 3 . Swap 30 | . 4 . 2 1 10 13 . Drop 32 | . 7 . . 1 12 12 . Fire 186 | . 31 . . 1 51 103 . Melee 9 | . . . . . . 9 . Ram . | . . . . . . . . Kick 3 | . 3 . . . . . . Crush . | . . . . . . . . Escape Stasis . | . . . . . . . . Rewire . | . . . . . . . . Trap . | . . . . . . . . Miscellaneous . | . . . . . . . . Route ------- -11/Scrapyard -10/Materials (discovered 4 exits: *Mat x3 / *Min) -10/Mines -10/Exiles -9/Mines -8/Materials -7/Factory (discovered 2 exits: Low x2) -7/Waste History --------- Turn | Location | Event 1 | -11/Scrapyard | Discovered new exit (range 0) 1 | -11/Scrapyard | Entered Materials 192 | -10/Materials | Discovered new exit (range 5) 314 | -10/Materials | Build established: Mutant 393 | -10/Materials | Destroyed 7 combat bots 416 | -10/Materials | Discovered new exit (range 14) 565 | -10/Materials | Discovered new exit (range 10) 732 | -10/Materials | Discovered new exit (range 12) 771 | -10/Materials | Identified exit to Materials 1133 | -10/Materials | Identified exit to Mines 1140 | -10/Materials | Entered Mines 1140 | -10/Mines | Accompanied by 1 ally 1308 | -10/Mines | Assisted by bots powering up and referring to "LRC-V3" 1368 | -10/Mines | Deemed a non-threat by the Exiles lab entrance 1368 | -10/Mines | Discovered new exit (range 5) 1374 | -10/Mines | Identified exit to Exiles 1383 | -10/Mines | Entered Exiles 1383 | -10/Exiles | Accompanied by 4 allies 1431 | -10/Exiles | Met 8R-AWN 1461 | -10/Exiles | Met EX-HEX 1537 | -10/Exiles | Met EX-DEC 1547 | -10/Exiles | Learned location of Zion (-7) 1600 | -10/Exiles | Discovered new exit (range 14) 1605 | -10/Exiles | Build established: Commander-Mutant 1624 | -10/Exiles | Identified exit to Mines 1630 | -10/Exiles | Entered Mines 1630 | -9/Mines | Accompanied by 4 allies 1631 | -9/Mines | Learned location of Storage (-9) 1821 | -9/Mines | Discovered new exit (range 10) 1838 | -9/Mines | Identified exit to Materials 1850 | -9/Mines | Entered Materials 1850 | -8/Materials | Accompanied by 4 allies 1850 | -8/Materials | Evolved 4 slots: Utility x4 2669 | -8/Materials | Build established: Scavenger-Skirmisher 2853 | -8/Materials | Discovered new exit (range 5) 2858 | -8/Materials | Identified exit to Factory 2868 | -8/Materials | Entered Factory 2868 | -7/Factory | Evolved 2 slots: Power x1, Utility x1 3175 | -7/Factory | Garrison activated, responded to threat 3386 | -7/Factory | System corruption reached 10% 3441 | -7/Factory | Lost 4 parts (1p3w) 3614 | -7/Factory | Build established: Scavenger-Mutant 3675 | -7/Factory | Identified exit to Lower Caves 3869 | -7/Factory | Garrison activated, responded to threat 4251 | -7/Factory | Core integrity fell below 50% 4285 | -7/Factory | Lost 3 parts (2u1w) 4329 | -7/Factory | Sucked down chute 4329 | -7/Factory | Entered Waste 4337 | -7/Waste | Spotted C-40 Crusher 4352 | -7/Waste | Spotted C-40 Crusher 4358 | -7/Waste | Spotted C-40 Crusher 4358 | -7/Waste | Spotted C-40 Crusher 4368 | -7/Waste | Self-destructed Last Messages --------------- 04281_ Destroyed Shock Rifle. 04284_ P-60 Hacker destroyed. 04289_ System corrupted: Matter fused (-6). 04293_ W-25 Informer sends out distress signal. 04296_ K-01 Serf collects debris. 04303_ Y-54 Guardian destroyed. 04305_ System corrupted: Tractor Beam rejected. 04305_ Acquired Tractor Beam. 04312_ Acquired 42 matter. 04317_ Acquired 43 matter. 04318_ Acquired 10 matter. 04320_ Acquired Imp. Heat Sink. 04321_ KRSMMUCYYSHAEW|F,0M%ZFDMU=%%UR,QW KPDBGG 04323_ Acquired 10 matter. 04329_ Triggered Chute Trap. 04329_ A hatch slides open and sucks a vortex of air into the floor. LOCATION=UNKNOWN GOAL=ESCAPE 04343_ System corrupted: Energy discharge (-81). 04366_ System corrupted: Heat flow error (+102). Map ----- +----------------------------------------------------+ | ?????????????????????????????????????????????????? | | ?????????????????????????????????????????????????? | | ?????????????????????????????????????????????????? | | ?????????????????????????????????????????????????? | | ?????????????????????????????????????????????????? | | ?????????????????????????????????????????????????? | | ?????????????????????????????????????????????????? | | ?????????????????????????????????????????????????? | | ?????????????????????????????????????????????????? | | ?????????????????????????????????????????????????? | | ?????????????????????????????????????????????????? | | ??????????????? ??????????????????????????????? | | ??????????????# #?????????????????????????????? | | ??????????????# #?????????????????????????????? | | ??????????????# #?????????????????????????????? | | ????????????### ####??????????????????????????? | | ????????????# ! ???????????????????????????? | | ????????????# ???????????????????????????? | | ????????????? ????????????????????????????? | | ?????????????? ?????????????????????????????? | | ??????????????# #?????????????????????????????? | | ############??# #?????????????????????????????? | | # #??# #???????????#?????????????????? | | # #??# #????????? #?????????????????? | | # #### ######## #####?????????????? | | # @CC ????????? | | # CC CCCC ????????? | | # ] CC CC CC ????????? | | # CC ?????????? | | # #### ######## ######## ?????????? | | # #??# #??????? #?????????????????? | | # / #??# #??????? #?????????????????? | | ############??# #???????? #?????????????????? | | ??????????????# #???????? #?????????????????? | | ?????????????? #???????? #?????????????????? | | ????????????? #????????? #?????????????????? | | ????????????# ! #????????? #?????????????????? | | ????????????# #?????????? #?????????????????? | | ????????????### #?????????? #?????????????????? | | ??????????????# #?????????????????????????????? | | ??????????????# #?????????????????????????????? | | ??????????????# #?????????????????????????????? | | ??????????????# #?????????????????????????????? | | ??????????????######?????????????????????????????? | | ?????????????????????????????????????????????????? | | ?????????????????????????????????????????????????? | | ?????????????????????????????????????????????????? | | ?????????????????????????????????????????????????? | | ?????????????????????????????????????????????????? | | ?????????????????????????????????????????????????? | +----------------------------------------------------+ Best States ------------- Heat Dissipation 62 Energy Generation 26 Energy Capacity 430 Matter Stores 300 Matter Capacity 500 Sight Range 16 Robot Scan Range 15 Terrain Scan Density 10 Armor Coverage 300 Propulsion Shielding 33 Evasion (%) 55 Target Analysis 5 Recoil Reduction 2 Item Schematics ----------------- None Robot Schematics ------------------ None Fabricated ------------ Nothing Alien Tech Used ----------------- None Achievements -------------- None Challenges ------------ None Game ------ Seed ZionitePotentialBroadsword Manual? 0 Play Time 00:25:19 Cumulative 342.6 hours Start 2022.06.23 @ 15:27:44 End 2022.06.24 @ 14:52:50 Sessions 3 Manual Loads 0 Difficulty Rogue Special Mode None Game No. 417 Rogue 416 Adventurer 0 Explorer 1 Win Type - Total 9 Types 6/0/1/2/0/0/0/0/0 Lore% 73 Gallery% 84 Achievement% 61 Wizard Run 0 Options --------- ASCII 0 Keyboard 1 Movement Vi Keybinds 0 Fullscreen 1 Font 18/SmallcapsGlow Map View 76x50 Tactical HUD 1 Map Filters NONE Filters NONE Steam 1 RUN: 71cdf330-d385-4a0d-a2bf-c063207f1c98